bitfinex/quotes_BTCUSD_20220211
["timestamp","ask_amount","ask_price","bid_price","bid_amount"]
[1644578017027,1.86917448,43458.0,43457.0,0.66732118]
[1644578017725,1.86917448,43458.0,43457.0,0.99257434]
[1644578018422,1.86917448,43458.0,43457.0,0.66732118]
[1644578018622,1.86917448,43458.0,43457.0,0.98027975]
[1644578019023,1.86917448,43458.0,43457.0,0.66732118]
[1644578019224,1.86917448,43458.0,43457.0,0.9825523]
[1644578019725,1.86917448,43458.0,43457.0,0.2296751]
[1644578020376,1.86917448,43458.0,43457.0,0.59569624]
[1644578020576,0.00272108,43466.0,43457.0,0.3872141]
[1644578020776,0.00025971,43459.0,43458.0,1.332885]
[1644578020975,0.00272108,43466.0,43458.0,0.58448228]
[1644578021179,0.00025971,43465.0,43460.0,0.091317]
[1644578021376,0.00025971,43467.0,43462.0,0.252771]
[1644578021574,0.00025971,43468.0,43463.0,0.0515]
[1644578021776,0.01,43469.0,43466.0,0.252745]
[1644578021977,0.00025971,43468.0,43466.0,0.25284228]
[1644578022176,0.01,43469.0,43467.0,0.091298]
[1644578022379,0.00025971,43468.0,43467.0,0.09139528]
[1644578022676,0.01025971,43469.0,43468.0,0.43649272]
[1644578022882,0.01,43469.0,43468.0,0.689322]
[1644578023081,0.01,43469.0,43468.0,0.739322]
[1644578023836,0.01,43469.0,43468.0,0.854367]
[1644578024636,0.00869446,43469.0,43468.0,0.854367]
[1644578025040,0.00071291,43471.0,43469.0,0.3]
[1644578025239,0.00071291,43471.0,43470.0,0.63049978]
[1644578025437,0.00071291,43471.0,43470.0,0.68209706]
[1644578025636,0.00071291,43471.0,43470.0,0.73209706]
[1644578025839,0.00025971,43476.0,43470.0,0.73209706]
[1644578026039,0.00025971,43472.0,43470.0,0.75582834]
[1644578026238,0.0007129,43473.0,43471.0,0.63650129]
[1644578026438,0.0007129,43473.0,43472.0,0.38292617]
[1644578026639,0.0007129,43473.0,43472.0,0.38302345]
[1644578027040,0.00025966,43476.0,43472.0,0.38302345]
[1644578027239,0.00025966,43478.0,43474.0,0.05751434]
[1644578027472,0.011,43479.0,43478.0,0.3545675]
[1644578027778,0.011,43479.0,43478.0,0.32767605]
[1644578029677,0.011,43479.0,43478.0,0.62713822]
[1644578029879,0.011,43479.0,43478.0,0.37917605]
[1644578033030,0.011,43479.0,43478.0,0.374984]
[1644578033228,0.011,43479.0,43478.0,0.323484]
[1644578033529,0.011,43479.0,43477.0,0.28005527]
[1644578033728,0.01125963,43479.0,43478.0,0.323484]
[1644578034027,0.011,43479.0,43478.0,0.323484]
[1644578035477,0.011,43479.0,43478.0,0.02045]
[1644578035675,0.011,43479.0,43477.0,0.28015253]
[1644578035875,0.01125963,43479.0,43477.0,0.28015253]
[1644578036877,0.01125963,43479.0,43478.0,0.323484]
[1644578036878,0.011,43479.0,43478.0,0.323484]
[1644578037079,0.011,43479.0,43478.0,0.32358126]
[1644578038278,0.011,43479.0,43478.0,9.726e-05]
[1644578038478,0.334484,43479.0,43478.0,9.726e-05]
[1644578038925,0.011,43479.0,43478.0,9.726e-05]
[1644578039325,0.334484,43479.0,43478.0,9.726e-05]
[1644578039928,0.011,43479.0,43478.0,9.726e-05]
[1644578040327,0.011,43479.0,43478.0,0.08957247]
[1644578040928,0.011,43479.0,43478.0,0.41305647]
[1644578041729,0.011,43479.0,43478.0,0.08957247]
[1644578042330,0.011,43479.0,43478.0,0.41305647]
[1644578043480,0.01072318,43479.0,43478.0,0.41305647]
[1644578043876,0.01072318,43479.0,43478.0,0.46455647]
[1644578044077,0.01072318,43479.0,43478.0,0.7747641]
[1644578046524,0.01000318,43479.0,43478.0,0.7747641]
[1644578047525,0.01000318,43479.0,43478.0,0.95821955]
[1644578047725,0.00849325,43479.0,43478.0,0.8247641]
[1644578047925,0.00849325,43479.0,43478.0,1.00821955]
[1644578048425,0.00025963,43480.0,43479.0,0.077948]
[1644578048628,0.00025963,43482.0,43479.0,0.4663061]
[1644578048826,0.00025963,43482.0,43481.0,0.32346]
[1644578049026,0.00025963,43482.0,43481.0,0.32355724]
[1644578049225,0.1,43483.0,43482.0,0.057499]
[1644578049424,0.1,43483.0,43482.0,0.07804224]
[1644578049626,0.1,43483.0,43482.0,0.323446]
[1644578051280,0.1,43483.0,43482.0,0.380945]
[1644578051878,0.1,43483.0,43482.0,0.69053248]
[1644578054121,0.1,43483.0,43482.0,0.380945]
[1644578067475,0.1,43483.0,43482.0,0.057499]
[1644578067677,0.723446,43483.0,43481.0,0.114997]
[1644578067876,0.323446,43482.0,43481.0,0.057498]
[1644578069331,0.623446,43482.0,43481.0,0.057498]
[1644578070928,0.323446,43482.0,43481.0,0.057498]
[1644578071528,0.57549454,43482.0,43481.0,0.057498]
[1644578071929,0.57549454,43482.0,43478.0,0.057523]
[1644578071930,0.62549454,43482.0,43478.0,0.057523]
[1644578072132,0.2551816,43479.0,43475.0,0.115042]
[1644578072331,0.2551816,43479.0,43470.0,0.05753202]
[1644578072332,0.673446,43478.0,43470.0,0.05753202]
[1644578072575,0.673446,43478.0,43472.0,0.05]
[1644578072776,0.35025963,43478.0,43470.0,0.05]
[1644578072976,0.34564444,43473.0,43472.0,0.115058]
[1644578073177,0.66909044,43473.0,43472.0,0.115058]
[1644578073375,0.66909044,43473.0,43472.0,0.165058]
[1644578074076,0.28505271,43475.0,43472.0,0.165058]
[1644578074077,0.323446,43475.0,43472.0,0.165058]
[1644578074278,0.00066759,43475.0,43473.0,0.05]
[1644578075177,0.323446,43475.0,43473.0,0.05]
[1644578075377,0.323446,43475.0,43473.0,0.04947187]
[1644578075579,0.5724753,43474.0,43473.0,0.04947187]
[1644578075876,0.5724753,43474.0,43473.0,0.10699987]
[1644578076325,0.55989038,43474.0,43473.0,0.10699987]
[1644578076524,0.55687409,43474.0,43473.0,0.10699987]
[1644578076726,0.323446,43474.0,43473.0,0.10699987]
[1644578077124,0.0006681,43476.0,43473.0,0.10699987]
[1644578077327,0.0006681,43476.0,43474.0,0.057526]
[1644578077526,0.00025963,43478.0,43474.0,0.23010613]
[1644578077725,0.00025963,43476.0,43474.0,0.23010613]
[1644578077926,0.36135936,43481.0,43474.0,0.23010613]
[1644578077927,0.323446,43475.0,43474.0,0.23010613]
[1644578078127,0.00025963,43477.0,43474.0,0.23010613]
[1644578078328,0.323446,43476.0,43474.0,0.17257913]
[1644578078626,0.323446,43476.0,43475.0,0.057526]
[1644578078826,0.32370563,43477.0,43476.0,0.057522]
[1644578079028,0.3241145,43477.0,43476.0,0.057522]
[1644578079426,0.0006685,43477.0,43476.0,0.057522]
[1644578079626,0.0006685,43477.0,43476.0,0.107522]
[1644578079832,0.0006685,43477.0,43475.0,0.323446]
[1644578080089,0.323446,43479.0,43477.0,0.07692185]
[1644578080287,0.0006685,43479.0,43478.0,0.1150357]
[1644578080487,0.00092813,43479.0,43478.0,0.1150357]
[1644578080687,0.0006685,43479.0,43478.0,0.1150357]
[1644578081090,0.29635936,43483.0,43478.0,0.1150357]
[1644578081091,0.00025963,43482.0,43478.0,0.1150357]
[1644578081289,0.29635936,43483.0,43479.0,0.05751]
[1644578081494,0.29635936,43483.0,43480.0,0.323446]
[1644578081495,0.00066849,43481.0,43480.0,0.323446]
[1644578082088,0.00066849,43481.0,43480.0,0.66142666]
[1644578082288,0.00025963,43482.0,43480.0,0.66142666]
[1644578082491,0.1,43483.0,43480.0,0.71893386]
[1644578082788,0.00025963,43482.0,43481.0,0.430954]
[1644578082990,0.10092809,43483.0,43482.0,0.380955]
[1644578083188,0.10066846,43483.0,43482.0,0.380955]
[1644578083588,0.1,43483.0,43482.0,0.380955]
[1644578085527,0.1,43483.0,43482.0,0.057509]
[1644578087228,0.423446,43483.0,43482.0,0.057509]
[1644578091833,0.67700288,43483.0,43482.0,0.057509]
[1644578092632,0.323446,43482.0,43472.0,0.19534451]
[1644578092834,0.35355688,43483.0,43470.0,0.19534451]
[1644578092835,0.19643843,43481.0,43470.0,0.19534451]
[1644578093033,0.47389744,43480.0,43471.0,0.323446]
[1644578093232,0.47389744,43480.0,43477.0,0.00383348]
[1644578093233,0.3199082,43479.0,43477.0,0.00383348]
[1644578093434,0.57399101,43478.0,43477.0,0.00383348]
[1644578093633,0.57399101,43478.0,43477.0,0.06135848]
[1644578094134,0.25054501,43478.0,43477.0,0.06135848]
[1644578094333,0.57400001,43478.0,43477.0,0.06135848]
[1644578094632,0.25054501,43478.0,43477.0,0.06135848]
[1644578096385,0.323455,43479.0,43477.0,0.06135848]
[1644578096585,0.19707097,43480.0,43477.0,0.06135848]
[1644578096586,0.00063254,43480.0,43477.0,0.06135848]
[1644578096885,0.00025963,43482.0,43478.0,0.057516]
[1644578097084,0.00025963,43482.0,43478.0,0.057512]
[1644578097085,0.00063347,43480.0,43478.0,0.057512]
[1644578097285,0.00063347,43480.0,43478.0,0.115027]
[1644578097585,0.32408447,43480.0,43479.0,0.36631249]
[1644578097984,0.323451,43480.0,43479.0,0.44605398]
[1644578098189,0.323451,43480.0,43479.0,0.56107798]
[1644578098387,0.323451,43480.0,43479.0,0.67609998]
[1644578098586,0.323451,43481.0,43479.0,0.67609998]
[1644578099828,0.00089671,43482.0,43480.0,0.057511]
[1644578100028,0.00089671,43482.0,43481.0,0.323451]
[1644578100327,0.30025963,43483.0,43481.0,0.323451]
[1644578100527,0.3,43483.0,43480.0,0.057511]
[1644578100729,0.3,43483.0,43481.0,0.05751]
[1644578100929,0.30025963,43483.0,43482.0,0.057511]
[1644578101126,0.3,43483.0,43482.0,0.057511]
[1644578101928,0.623451,43483.0,43482.0,0.057511]
[1644578105082,0.00025963,43484.0,43482.0,0.380962]
[1644578105283,0.001,43487.0,43484.0,0.0575]
[1644578105478,0.001,43487.0,43485.0,0.323428]
[1644578105679,0.001,43487.0,43486.0,0.0515]
[1644578106535,0.001,43487.0,43486.0,0.05661]
[1644578107132,0.001,43487.0,43486.0,0.0515]
[1644578108234,0.001,43487.0,43486.0,0.05661]
[1644578108637,0.001,43487.0,43486.0,0.0515]
[1644578109035,0.001,43487.0,43486.0,0.21657864]
[1644578109435,0.00266875,43487.0,43486.0,0.21657864]
[1644578109835,0.00266875,43487.0,43485.0,0.180898]
[1644578110077,0.00266875,43487.0,43486.0,0.0515]
[1644578110078,0.00292851,43487.0,43486.0,0.0515]
[1644578110278,0.00292851,43487.0,43486.0,0.05661]
[1644578110279,0.00266875,43487.0,43486.0,0.05661]
[1644578110482,0.00266875,43487.0,43486.0,0.056609]
[1644578110680,0.00266875,43487.0,43486.0,0.056608]
[1644578110878,0.00266875,43487.0,43486.0,0.0515]
[1644578112780,0.00266875,43487.0,43486.0,0.056608]
[1644578112980,0.00266875,43487.0,43486.0,0.0515]
[1644578115133,0.00260309,43487.0,43486.0,0.0515]
[1644578116835,0.00232627,43487.0,43486.0,0.0515]
[1644578118076,0.00232627,43487.0,43486.0,0.38512559]
[1644578121435,0.00232627,43487.0,43486.0,0.39023359]
[1644578121636,0.00232627,43487.0,43486.0,0.38512559]
[1644578122034,0.00232627,43487.0,43486.0,0.39023359]
[1644578122236,0.00232627,43487.0,43486.0,0.38512559]
[1644578123438,0.001,43491.0,43487.0,0.180891]
[1644578123640,0.001,43491.0,43488.0,0.057502]
[1644578123641,0.00063702,43489.0,43488.0,0.057502]
[1644578123838,0.00063702,43489.0,43488.0,0.11411]
[1644578124538,0.001,43491.0,43488.0,0.11411]
[1644578124737,0.001,43491.0,43490.0,0.005107]
[1644578124985,0.001,43491.0,43490.0,0.056607]
[1644578124986,0.00163821,43491.0,43490.0,0.056607]
[1644578125685,0.001,43491.0,43490.0,0.056607]
[1644578130330,0.001,43491.0,43490.0,0.005107]
[1644578131432,0.001,43491.0,43490.0,0.056607]
[1644578131631,0.001,43491.0,43490.0,0.37828723]
[1644578132033,0.001,43494.0,43490.0,0.37828723]
[1644578132034,0.00063842,43493.0,43491.0,0.114972]
[1644578132232,0.00063842,43493.0,43492.0,0.77424394]
[1644578132485,0.00063842,43493.0,43492.0,1.37424394]
[1644578132685,7.157e-05,43493.0,43492.0,1.37424394]
[1644578132882,0.00937959,43499.0,43492.0,1.37424394]
[1644578133085,0.00937959,43499.0,43494.0,0.062582]
[1644578133283,0.00937959,43499.0,43495.0,0.43205303]
[1644578133483,0.00937959,43499.0,43497.0,0.34714799]
[1644578133783,0.5785,43506.0,43498.0,0.1297775]
[1644578133983,0.5785,43506.0,43498.0,0.44038922]
[1644578134184,0.5785,43506.0,43499.0,0.180831]
[1644578134387,0.5785,43506.0,43503.0,0.005094]
[1644578134584,0.5785,43506.0,43503.0,0.0515]
[1644578134784,0.01,43509.0,43504.0,0.35978828]
[1644578135188,0.01,43509.0,43505.0,0.185894]
[1644578135385,0.01,43509.0,43505.0,0.243372]
[1644578135585,0.01,43509.0,43506.0,0.13292002]
[1644578136240,0.01,43509.0,43506.0,0.19039802]
[1644578136434,0.01,43509.0,43506.0,0.24787402]
[1644578136635,0.01,43509.0,43507.0,0.057477]
[1644578136835,0.01,43509.0,43508.0,0.18588]
[1644578137639,0.01,43509.0,43507.0,0.11495381]
[1644578138141,0.01,43509.0,43508.0,0.114948]
[1644578139843,0.01,43509.0,43505.0,0.01129805]
[1644578140283,0.005,43509.0,43506.0,0.07852638]
[1644578140483,0.00525967,43509.0,43506.0,0.07852638]
[1644578140683,0.005,43509.0,43508.0,0.185879]
[1644578141583,0.00469383,43509.0,43508.0,0.185879]
[1644578141784,0.00469383,43509.0,43508.0,0.243353]
[1644578144436,0.00469383,43509.0,43508.0,0.294853]
[1644578144636,0.05563007,43513.0,43510.0,0.11494]
[1644578144839,0.05563007,43513.0,43512.0,0.31074393]
[1644578145235,0.05563007,43513.0,43512.0,0.49659993]
[1644578146237,0.05979477,43527.0,43514.0,0.9]
[1644578146437,0.19606588,43524.0,43520.0,0.6443]
[1644578146637,0.002,43528.0,43521.0,0.24276288]
[1644578146839,0.0022601,43528.0,43521.0,0.79276288]
[1644578147040,0.0022601,43528.0,43523.0,0.235793]
[1644578147241,0.0022601,43528.0,43527.0,0.39721415]
[1644578147496,0.0022601,43528.0,43527.0,0.54871415]
[1644578147497,0.002,43528.0,43527.0,0.54871415]
[1644578148688,0.011,43529.0,43527.0,1.1003663]
[1644578148891,0.011,43529.0,43528.0,0.185766]
[1644578149094,0.011,43529.0,43528.0,1.381566]
[1644578149289,0.011,43529.0,43528.0,1.481566]
[1644578149889,0.011,43529.0,43528.0,1.381566]
[1644578150695,0.011,43529.0,43528.0,1.380566]
[1644578150696,0.01,43529.0,43528.0,1.380566]
[1644578150892,0.011,43529.0,43528.0,0.5515]
[1644578151434,0.2030553,43536.0,43529.0,0.180768]
[1644578151634,0.323394,43535.0,43529.0,0.057451]
[1644578152334,0.28195916,43537.0,43529.0,0.057451]
[1644578152535,0.323394,43536.0,43529.0,0.057451]
[1644578153337,0.05745,43535.0,43529.0,0.057451]
[1644578154539,0.28195916,43537.0,43529.0,0.057451]
[1644578154540,0.059446,43537.0,43529.0,0.057451]
[1644578154743,0.00071531,43534.0,43531.0,0.057445]
[1644578154981,0.00071531,43534.0,43532.0,0.180751]
[1644578155182,0.00230723,43534.0,43532.0,0.180751]
[1644578155585,0.00230723,43534.0,43532.0,0.28969045]
[1644578155783,0.00159192,43534.0,43533.0,0.180746]
[1644578156786,0.00159192,43534.0,43533.0,0.48986152]
[1644578156987,0.00159192,43534.0,43533.0,0.56329695]
[1644578157285,0.00159192,43534.0,43533.0,0.66329695]
[1644578157685,0.00159192,43534.0,43533.0,1.16329695]
[1644578158386,0.00159192,43534.0,43533.0,1.58329695]
[1644578160134,0.0020419,43536.0,43534.0,0.057432]
[1644578160334,0.0020419,43536.0,43535.0,1.03866871]
[1644578160538,0.0013266,43536.0,43535.0,1.03866871]
[1644578160736,0.0013266,43536.0,43535.0,0.732235]
[1644578160934,0.0013266,43536.0,43535.0,1.15230873]
[1644578161334,0.0013266,43536.0,43535.0,0.732235]
[1644578161535,0.00271529,43537.0,43535.0,0.732235]
[1644578161737,0.00904189,43539.0,43535.0,0.732235]
[1644578161936,0.00904189,43539.0,43536.0,0.057426]
[1644578161937,0.00071529,43538.0,43536.0,0.057426]
[1644578162137,0.00071529,43538.0,43537.0,0.232224]
[1644578162984,0.00904189,43539.0,43537.0,0.732224]
[1644578163382,0.00930211,43539.0,43537.0,1.33192651]
[1644578164185,0.00930211,43539.0,43537.0,1.446775]
[1644578164386,0.00904189,43539.0,43538.0,0.180718]
[1644578164586,0.00904189,43539.0,43538.0,0.732218]
[1644578164786,0.00904189,43539.0,43538.0,0.832218]
[1644578167536,0.01,43549.0,43539.0,0.957425]
[1644578167736,0.01,43549.0,43541.0,0.057422]
[1644578167935,0.00026069,43548.0,43544.0,0.180684]
[1644578168134,0.00026069,43548.0,43545.0,0.232179]
[1644578168337,0.00026069,43548.0,43546.0,0.0515]
[1644578168734,0.00026069,43548.0,43546.0,0.232173]
[1644578168936,0.00026069,43548.0,43546.0,0.0515]
[1644578169836,0.001,43553.0,43548.0,0.057417]
[1644578170081,0.001,43553.0,43547.0,0.180669]
[1644578170082,0.001,43553.0,43549.0,0.346986]
[1644578170282,0.001,43553.0,43550.0,0.0515]
[1644578170482,0.001,43553.0,43551.0,0.180646]
[1644578171681,0.001,43553.0,43552.0,0.057417]
[1644578171882,0.001,43553.0,43552.0,0.238057]
[1644578173747,0.001,43553.0,43552.0,0.18064]
[1644578173943,0.001,43553.0,43536.0,0.3655]
[1644578173944,0.85655192,43553.0,43536.0,0.3655]
[1644578174139,0.85655192,43553.0,43540.0,0.92]
[1644578174140,0.373394,43552.0,43540.0,0.92]
[1644578174339,0.05,43552.0,43542.0,0.08312521]
[1644578174539,0.38315792,43553.0,43542.0,0.08312521]
[1644578174739,0.38315792,43553.0,43543.0,0.180685]
[1644578174939,0.34519863,43551.0,43543.0,0.180685]
[1644578175139,0.114863,43552.0,43544.0,0.057432]
[1644578175339,0.114863,43552.0,43545.0,0.180676]
[1644578175340,0.00071555,43550.0,43545.0,0.180676]
[1644578175539,0.00071555,43550.0,43542.0,0.18069]
[1644578175939,0.057434,43549.0,43542.0,0.18069]
[1644578176143,0.3474698,43549.0,43544.0,0.057432]
[1644578176440,0.00071555,43548.0,43545.0,0.180678]
[1644578177480,0.49802192,43553.0,43545.0,0.180678]
[1644578177681,0.33708325,43548.0,43543.0,0.057433]
[1644578178883,0.33279881,43548.0,43545.0,0.238108]
[1644578179083,0.33279881,43548.0,43545.0,0.05743]
[1644578179683,0.00071556,43548.0,43541.0,0.114861]
[1644578179884,0.05743,43550.0,43542.0,0.18069]
[1644578180086,0.00071555,43549.0,43542.0,0.18069]
[1644578180486,0.00071555,43549.0,43543.0,0.108931]
[1644578180685,0.00071555,43549.0,43544.0,0.23809889]
[1644578180886,0.00071555,43549.0,43545.0,0.232177]
[1644578181085,0.3546539,43553.0,43545.0,0.232177]
[1644578181343,0.00071555,43548.0,43545.0,0.232177]
[1644578181937,0.00071555,43548.0,43547.0,0.23808588]
[1644578182136,0.00071555,43548.0,43547.0,0.28958588]
[1644578182337,0.3546539,43553.0,43548.0,0.180661]
[1644578182537,0.0006809,43549.0,43548.0,0.232161]
[1644578183339,0.3546539,43553.0,43548.0,0.28958]
[1644578183537,0.001,43553.0,43548.0,0.28958]
[1644578183739,0.29977668,43551.0,43548.0,0.28958]
[1644578183944,0.29977668,43551.0,43543.0,0.5]
[1644578183945,1.05,43550.0,43543.0,0.5]
[1644578184139,0.19289216,43538.0,43537.0,0.00060277]
[1644578184342,0.19289216,43538.0,43537.0,0.50060277]
[1644578184343,0.51626516,43538.0,43537.0,0.50060277]
[1644578184542,0.81626516,43538.0,43537.0,0.50060277]
[1644578184838,0.81626516,43538.0,43527.0,0.114891]
[1644578184839,0.114905,43536.0,43527.0,0.114891]
[1644578185090,0.623373,43535.0,43527.0,0.114891]
[1644578185290,0.00026071,43537.0,43527.0,0.114891]
[1644578185492,0.00026071,43535.0,43527.0,0.114891]
[1644578185689,0.057453,43535.0,43527.0,0.114891]
[1644578186089,0.323373,43534.0,43530.0,0.00061072]
[1644578186290,0.323373,43534.0,43530.0,0.05805772]
[1644578186291,0.00026071,43534.0,43530.0,0.05805772]
[1644578186494,0.00026071,43536.0,43530.0,0.05805772]
[1644578186890,0.30026071,43537.0,43530.0,0.05805772]
[1644578187091,0.00026071,43536.0,43530.0,0.057447]
[1644578187291,0.323373,43536.0,43531.0,0.0006107]
[1644578187491,0.32363371,43536.0,43531.0,0.0006107]
[1644578188093,0.323373,43534.0,43531.0,0.0006107]
[1644578188294,0.107449,43535.0,43523.0,0.3742]
[1644578188295,0.323373,43532.0,43523.0,0.3742]
[1644578188493,0.323373,43532.0,43531.0,0.0006107]
[1644578189236,0.40282645,43532.0,43531.0,0.0006107]
[1644578189433,0.40282645,43532.0,43521.0,0.114908]
[1644578189434,0.057459,43529.0,43521.0,0.114908]
[1644578189635,0.35013624,43528.0,43521.0,0.114908]
[1644578190035,0.26240564,43526.0,43521.0,0.114908]
[1644578190435,0.24877817,43525.0,43521.0,0.114908]
[1644578190636,0.24877817,43525.0,43519.0,0.057462]
[1644578190836,0.323373,43524.0,43521.0,0.00060607]
[1644578191236,0.06478214,43523.0,43521.0,0.00060607]
[1644578191437,0.94512299,43522.0,43521.0,0.00060607]
[1644578191839,0.94512299,43522.0,43512.0,0.1]
[1644578192138,0.94512299,43522.0,43519.0,0.0006061]
[1644578192139,0.473373,43520.0,43519.0,0.0006061]
[1644578192339,0.724873,43520.0,43519.0,0.0006061]
[1644578192787,0.674873,43520.0,43519.0,0.0006061]
[1644578192989,1.08792845,43520.0,43519.0,0.0006061]
[1644578193189,1.08792845,43520.0,43512.0,0.1]
[1644578193190,0.057476,43518.0,43512.0,0.1]
[1644578193387,0.432349,43518.0,43517.0,0.00060683]
[1644578193989,0.5163803,43518.0,43517.0,0.00060683]
[1644578194187,0.5163803,43518.0,43512.0,0.1]
[1644578194391,0.323373,43517.0,43512.0,0.1]
[1644578194589,0.323373,43515.0,43512.0,0.1]
[1644578194790,0.323373,43513.0,43512.0,0.1]
[1644578195090,0.64177648,43513.0,43512.0,0.1]
[1644578195289,1.43366332,43513.0,43512.0,0.1]
[1644578195688,1.48366332,43513.0,43512.0,0.1]
[1644578196738,1.43216332,43513.0,43512.0,0.1]
[1644578197136,1.43216332,43513.0,43512.0,0.0944]
[1644578199740,0.90831342,43513.0,43512.0,0.0944]
[1644578199988,1.23169742,43513.0,43512.0,0.0944]
[1644578200388,1.38142065,43513.0,43512.0,0.0944]
[1644578200589,1.23169742,43513.0,43512.0,0.0944]
[1644578201191,1.33169742,43513.0,43512.0,0.0944]
[1644578201590,1.53142065,43513.0,43512.0,0.0944]
[1644578201889,1.33169742,43513.0,43512.0,0.0944]
[1644578202891,1.338972,43513.0,43512.0,0.0944]
[1644578207044,1.238972,43513.0,43512.0,0.0944]
[1644578209291,0.83675006,43513.0,43512.0,0.0944]
[1644578209495,0.49708516,43513.0,43512.0,0.0944]
[1644578209693,0.33065858,43513.0,43512.0,0.0944]
[1644578209897,0.00727458,43513.0,43512.0,0.0944]
[1644578210096,0.26240564,43526.0,43512.0,0.0944]
[1644578210097,0.05747,43519.0,43513.0,0.00763544]
[1644578210293,0.26240564,43526.0,43512.0,0.0944]
[1644578210294,0.86417227,43526.0,43512.0,0.0944]
[1644578210494,0.86417227,43526.0,43515.0,0.057463]
[1644578210495,0.59005769,43521.0,43515.0,0.057463]
[1644578211341,0.59005769,43521.0,43516.0,0.00059487]
[1644578211941,0.64752669,43521.0,43516.0,0.00059487]
[1644578212141,0.323384,43519.0,43516.0,0.00059487]
[1644578212443,0.323384,43519.0,43516.0,0.00060652]
[1644578213443,0.323384,43519.0,43513.0,0.057472]
[1644578213444,0.323384,43518.0,43513.0,0.057472]
[1644578213844,0.323384,43518.0,43515.0,0.00060654]
[1644578214847,0.25307993,43517.0,43515.0,0.05747]
[1644578215090,0.323384,43516.0,43514.0,0.00060655]
[1644578215887,0.323384,43516.0,43512.0,0.0944]
[1644578216086,0.323384,43516.0,43513.0,0.00060486]
[1644578216888,0.24867647,43515.0,43513.0,0.00060486]
[1644578217090,0.323384,43514.0,43512.0,0.0944]
[1644578217288,0.62108694,43513.0,43512.0,0.09500487]
[1644578217689,0.968785,43513.0,43512.0,0.09500487]
[1644578217886,1.068785,43513.0,43512.0,0.09500487]
[1644578218087,0.62072157,43513.0,43512.0,0.09500487]
[1644578218290,0.62072157,43513.0,43512.0,0.0944]
[1644578219141,0.88063834,43513.0,43512.0,0.0944]
[1644578219541,0.96419813,43513.0,43512.0,0.0944]
[1644578220542,1.01419813,43513.0,43512.0,0.0944]
[1644578220743,0.96419813,43513.0,43512.0,0.0944]
[1644578222586,0.88063834,43513.0,43512.0,0.0944]
[1644578223789,0.93063834,43513.0,43512.0,0.0944]
[1644578224888,1.01634195,43513.0,43512.0,0.0944]
[1644578225593,1.06634195,43513.0,43512.0,0.0944]
[1644578227341,1.01634195,43513.0,43512.0,0.0944]
[1644578227542,0.96634195,43513.0,43512.0,0.0944]
[1644578228044,0.66900438,43513.0,43512.0,0.0944]
[1644578228442,0.91821517,43513.0,43512.0,0.0944]
[1644578228844,0.96821517,43513.0,43512.0,0.0944]
[1644578229645,0.71900438,43513.0,43512.0,0.0944]
[1644578229845,0.51854781,43513.0,43512.0,0.0944]
[1644578230291,0.77284526,43513.0,43512.0,0.0944]
[1644578231793,0.82284526,43513.0,43512.0,0.0944]
[1644578231996,0.56854781,43513.0,43512.0,0.0944]
[1644578232594,0.56827124,43513.0,43512.0,0.0944]
[1644578233837,0.61827124,43513.0,43512.0,0.0944]
[1644578235439,0.88986596,43513.0,43512.0,0.0944]
[1644578235637,0.61827124,43513.0,43512.0,0.0944]
[1644578236440,0.88699756,43513.0,43512.0,0.0944]
[1644578237888,0.61827124,43513.0,43512.0,0.0944]
[1644578240495,1.13522312,43512.0,43510.0,0.00060512]
[1644578240698,1.01294402,43511.0,43510.0,0.00060512]
[1644578240898,1.11294402,43511.0,43510.0,0.00060512]
[1644578241098,0.9,43510.0,43501.0,0.01]
[1644578241351,0.44149159,43508.0,43501.0,0.01]
[1644578241555,0.0575052,43505.0,43501.0,0.01]
[1644578241749,0.58563852,43504.0,43501.0,0.01]
[1644578242250,0.63563852,43504.0,43501.0,0.01]
[1644578242550,0.323384,43502.0,43501.0,0.01]
[1644578242750,0.423384,43502.0,43501.0,0.01]
[1644578242951,0.68086105,43502.0,43501.0,0.01]
[1644578244451,0.68086105,43502.0,43493.0,0.61404787]
[1644578244452,0.9,43501.0,43493.0,0.61404787]
[1644578244656,0.05751742,43498.0,43491.0,0.20404787]
[1644578244850,0.253327,43493.0,43491.0,0.01]
[1644578245089,0.323384,43493.0,43491.0,0.01]
[1644578245489,0.75782982,43492.0,43491.0,0.01]
[1644578245693,0.79229807,43492.0,43491.0,0.01]
[1644578245892,0.3041681,43492.0,43491.0,0.01]
[1644578246694,0.52240454,43492.0,43491.0,0.01]
[1644578247193,0.62240454,43492.0,43491.0,0.01]
[1644578247795,0.72240454,43492.0,43491.0,0.01]
[1644578248193,0.67240454,43492.0,43491.0,0.01]
[1644578248394,0.72240454,43492.0,43491.0,0.01]
[1644578248843,0.4041681,43492.0,43491.0,0.01]
[1644578249246,0.33726534,43492.0,43491.0,0.01]
[1644578250143,0.15,43492.0,43491.0,0.01]
[1644578250343,0.22494871,43492.0,43491.0,0.01]
[1644578250544,0.54839971,43492.0,43491.0,0.01]
[1644578250742,0.473451,43492.0,43491.0,0.01]
[1644578252991,0.1,43492.0,43491.0,0.52749887]
[1644578253190,0.1,43492.0,43491.0,0.333451]
[1644578253389,0.1,43492.0,43491.0,0.64043573]
[1644578253589,0.1,43492.0,43491.0,0.97912052]
[1644578253789,0.1,43492.0,43491.0,1.22168036]
[1644578253990,0.1,43492.0,43491.0,0.57601084]
[1644578254790,0.1,43492.0,43491.0,0.69099984]
[1644578255693,0.1,43492.0,43491.0,0.99535584]
[1644578256739,0.1,43492.0,43491.0,1.04135584]
[1644578256940,0.114987,43503.0,43491.0,1.04135584]
[1644578256941,0.114975,43503.0,43494.0,0.057489]
[1644578257140,0.1205,43507.0,43496.0,0.19540083]
[1644578257338,0.1,43507.0,43497.0,0.308451]
[1644578257542,0.3748,43519.0,43497.0,0.308451]
[1644578257543,0.229953,43521.0,43506.0,0.05]
[1644578257742,0.2452971,43522.0,43513.0,0.0685866]
[1644578257743,0.057463,43522.0,43513.0,0.0685866]
[1644578257938,0.00285913,43523.0,43513.0,0.0685866]
[1644578257939,0.00285913,43523.0,43518.0,0.05746]